lending/lending_fUSD_20240401
["ID","MTS","AMOUNT","RATE_DAILY","PERIOD"]
[321222784,1711989046086,-265.1286,0.00057558,6]
[321222785,1711989046098,-41441.5752265,0.00057558,6]
[321222786,1711989046107,-1000.0,0.00057563,30]
[321222787,1711989046117,-500.0,0.00057563,120]
[321222788,1711989046127,-167.0,0.00057569,2]
[321222789,1711989046137,-174.14017305,0.00057607,2]
[321222790,1711989046148,-728.24404575,0.00057619,30]
[321222791,1711989046158,-495.30214906,0.00057619,2]
[321222792,1711989046167,-187.70467841,0.00057619,12]
[321222793,1711989046177,-1197.29991682,0.00057619,2]
[321222794,1711989046187,-734.06699083,0.00057704,2]
[321222795,1711989046196,-500.0,0.00057706,120]
[321222796,1711989046205,-21393.16087508,0.00057707,36]
[321222797,1711989046217,-286.35293546,0.00057707,36]
[321222798,1711989046230,-406.24944498,0.00057707,36]
[321222807,1711989046479,-172.2305523,0.00041,4]
[321222810,1711989046489,-288.1832685,0.00049898,4]
[321222812,1711989046498,-870.49805174,0.00051954,2]
[321222814,1711989046507,-500.0,0.00054794,120]
[321222816,1711989046516,-6839.89418933,0.00057707,36]
[321222819,1711989046532,-394028.44370441,0.00057707,36]
[321222821,1711989046543,-480.151,0.00057707,36]
[321222841,1711989046718,-870.49805174,0.00053572,2]
[321222843,1711989046728,-109981.2947992,0.00057707,36]
[321222845,1711989046742,-16285.03617993,0.00057707,36]
[321222847,1711989046753,-238008.44108667,0.00057707,36]
[321222850,1711989046763,-245000.0,0.00057707,2]
[321222852,1711989046773,-500.0,0.00057719,2]
[321222853,1711989046782,-7252.53329593,0.0005779,14]
[321222856,1711989046791,-7252.53329593,0.00057794,14]
[321222857,1711989046801,-250.7268988,0.00057805,4]
[321222860,1711989046810,-192.95395129,0.00057806,30]
[321222862,1711989046821,-165.28377532,0.00057806,4]
[321222864,1711989046832,-807.76796402,0.00057807,4]
[321222866,1711989046842,-7252.53329593,0.00057807,14]
[321222868,1711989046851,-344.03999999,0.00057808,120]
[321222870,1711989046862,-285.99,0.00057808,120]
[321222872,1711989046872,-631.8,0.00057808,120]
[321222874,1711989046883,-489.14736799,0.00057808,120]
[321222876,1711989046893,-500.0,0.00057808,120]
[321222878,1711989046902,-500.0,0.00057808,120]
[321222880,1711989046911,-7252.53329593,0.00057817,14]
[321222882,1711989046921,-7252.53329593,0.00057819,14]
[321222884,1711989046930,-1000.0,0.00057836,30]
[321222886,1711989046941,-454.66,0.00057836,120]
[321222888,1711989046951,-7252.53329593,0.00057844,14]
[321222890,1711989046960,-7252.53329593,0.00057862,14]
[321222892,1711989046971,-1500.0,0.000579,21]
[321222894,1711989046984,-991.0,0.00058,120]
[321222896,1711989046995,-416.98,0.00058068,2]
[321222898,1711989047005,-631.8,0.00058082,120]
[321222900,1711989047016,-500.0,0.00058082,120]
[321222902,1711989047027,-500.0,0.00058082,120]
[321222903,1711989047036,-1000.0,0.0005811,30]
[321222905,1711989047047,-631.8,0.00058356,120]
[321222908,1711989047057,-500.0,0.00058356,120]
[321222910,1711989047069,-500.0,0.00058356,120]
[321222912,1711989047081,-1000.0,0.00058384,30]
[321222913,1711989047095,-151.040116,0.00058478,119]
[321222916,1711989047106,-631.8,0.0005863,120]
[321222918,1711989047116,-500.0,0.0005863,120]
[321222920,1711989047127,-500.0,0.0005863,120]
[321222922,1711989047137,-1000.0,0.00058658,30]
[321222924,1711989047149,-151.38,0.0005867,120]
[321222926,1711989047160,-2116.0,0.00058716,117]
[321222928,1711989047170,-631.8,0.00058904,120]
[321222930,1711989047180,-500.0,0.00058904,120]
[321222932,1711989047191,-500.0,0.00058904,120]
[321222934,1711989047202,-1000.0,0.00058932,30]
[321222936,1711989047213,-151.725,0.00058977,120]
[321222938,1711989047223,-153.531,0.00058977,120]
[321222939,1711989047233,-1159.686,0.00058977,120]
[321222942,1711989047247,-176.542,0.00058977,2]
[321222944,1711989047258,-1406.541,0.00058977,120]
[321222946,1711989047269,-2446.207,0.00058977,120]
[321222948,1711989047279,-461.622,0.00058977,120]
[321222950,1711989047292,-977.818,0.00058977,120]
[321222970,1711989047512,-882.171,0.00058977,120]
[321222972,1711989047522,-1255.0,0.00058977,120]
[321222974,1711989047533,-538.0,0.00058977,120]
[321222976,1711989047543,-5000.0,0.00059,60]
[321222979,1711989047554,-186.5,0.00059,9]
[321222981,1711989047564,-186.5,0.00059,9]
[321222983,1711989047574,-186.5,0.00059,9]
[321222985,1711989047587,-186.5,0.00059,9]
[321222987,1711989047598,-186.5,0.00059,9]
[321222989,1711989047607,-186.5,0.00059,9]
[321222991,1711989047617,-186.5,0.00059,9]
[321222993,1711989047628,-186.5,0.00059,9]
[321222995,1711989047638,-186.5,0.00059,9]
[321222997,1711989047648,-186.5,0.00059,9]
[321222999,1711989047658,-186.5,0.00059,9]
[321223001,1711989047670,-186.5,0.00059,9]
[321223003,1711989047682,-186.5,0.00059,9]
[321223006,1711989047694,-186.5,0.00059,9]
[321223008,1711989047704,-186.5,0.00059,9]
[321223010,1711989047718,-186.5,0.00059,9]
[321223012,1711989047728,-186.5,0.00059,9]
[321223013,1711989047740,-186.5,0.00059,9]
[321223015,1711989047750,-186.5,0.00059,9]
[321223016,1711989047761,-186.5,0.00059,9]
[321223017,1711989047771,-631.8,0.00059178,120]
[321223018,1711989047783,-500.0,0.00059178,120]
[321223019,1711989047793,-427.79,0.00059178,120]
[321223020,1711989047804,-1200.0,0.000592,4]
[321223021,1711989047814,-1000.0,0.00059206,30]
[321223023,1711989047824,-631.8,0.00059452,120]
[321223025,1711989047835,-319.78014784,0.00059452,120]
[321223028,1711989047846,-1000.0,0.0005948,30]
[321223030,1711989047856,-631.8,0.00059726,120]
[321223031,1711989047868,-1000.0,0.00059754,30]
[321223034,1711989047878,-3137.61252511,0.0005989,18]
[321223036,1711989047887,-170.23708636,0.000599,120]
[321223038,1711989047897,-155.97651251,0.00059938,4]
[321223040,1711989047906,-176.53135283,0.0005994,120]
[321223042,1711989047916,-631.8,0.00059999,120]
[321223044,1711989047925,-518.06512933,0.0006,90]
[321223046,1711989047934,-1495.19701797,0.0006,7]
[321223048,1711989047943,-8905.49848806,0.0006,120]
[321223050,1711989047953,-1652.648893,0.0006,120]
[321223052,1711989047962,-3199.90089924,0.0006,90]
[321223054,1711989047973,-504.51083191,0.0006,7]
[321223056,1711989047986,-1307.2626098,0.0006,2]
[321223058,1711989047996,-1000.0,0.00060028,30]
[321223059,1711989048005,-155.17450903,0.00060047,120]
[321223062,1711989048015,-157.54831622,0.00060148,120]
[321223063,1711989048025,-631.8,0.00060273,120]
[321223066,1711989048034,-318.29619342,0.00060274,120]
[321223068,1711989048044,-286.35293546,0.000603,120]
[321223070,1711989048053,-1000.0,0.00060302,30]
[321223072,1711989048063,-416.98,0.00060332,2]
[321223074,1711989048073,-1000.0,0.00060439,120]
[321223075,1711989048085,-631.8,0.00060547,120]
[321223078,1711989048094,-1000.0,0.00060576,30]
[321223080,1711989048103,-470.17,0.00060712,120]
[321223081,1711989048112,-153.26703405,0.00060776,120]
[321223082,1711989048122,-631.8,0.00060821,120]
[321223083,1711989048131,-1000.0,0.00060833,13]
[321223084,1711989048141,-1000.0,0.0006085,30]
[321223085,1711989048151,-155.90767022,0.00060856,120]
[321223086,1711989048162,-1900.0,0.000609,22]
[321223087,1711989048173,-194.55862242,0.0006099,7]
[321223088,1711989048183,-5138.46893581,0.00060997,2]
[321223089,1711989048193,-166204.23388592,0.00061,120]
[321223091,1711989108042,1397.52946665,0.00033608,28]
[321223094,1711989838915,151.08,0.00037808,2]
[321223099,1711990172031,350.0,0.00033,3]
[321223100,1711990173132,400.0,0.00035,3]
[321223101,1711990174250,450.0,0.00037,3]
[321223102,1711990175366,500.0,0.00039,3]
[321223111,1711990232121,-342.91,0.00040996,4]
[321223112,1711990232231,-219.77660118,0.00040996,4]
[321223113,1711990232241,-245.51822448,0.00040997,2]
[321223114,1711990232251,-934.16335635,0.00040997,4]
[321223115,1711990232261,-150.0,0.00040998,5]
[321223116,1711990232274,-3982.53791811,0.00040999,4]
[321223117,1711990232284,-12310.75597601,0.00040999,4]
[321223118,1711990232294,-681.08339535,0.00041,4]
[321223119,1711990232304,-14767.16511998,0.00041,4]
[321223120,1711990232314,-550.0,0.00041,3]
[321223121,1711990232325,-600.0,0.00043,3]
[321223122,1711990232339,-10404.90155863,0.00045,5]
[321223123,1711990232349,-650.0,0.00045,3]
[321223124,1711990232359,-210.0,0.00045098,5]
[321223125,1711990232368,-150.0,0.00045778,120]
[321223126,1711990232379,-700.0,0.00047,3]
[321223127,1711990232389,-151.0,0.00048,120]
[321223128,1711990232399,-152.0,0.00048,3]
[321223129,1711990232409,-197.0,0.00049608,5]
[321223130,1711990232419,-488.85,0.00049689,2]
[321223131,1711990232428,-679.97438174,0.000497,2]
[321223132,1711990232437,-1775.27346817,0.00049743,2]
[321223133,1711990232450,-1552.65222096,0.00049743,2]
[321223134,1711990232460,-151.0,0.00049753,120]
[321223135,1711990232469,-499.99,0.00049753,2]
[321223136,1711990232479,-11666.1492598,0.000498,60]
[321223139,1711990232495,-4511.54944519,0.000498,60]
[321223141,1711990232507,-4575.28062149,0.000498,60]
[321223143,1711990232517,-192.82562792,0.00049893,2]
[321223145,1711990232527,-254.9915,0.000499,2]
[321223147,1711990232537,-1120.4292,0.000499,2]
[321223149,1711990232546,-209.0901,0.000499,2]
[321223150,1711990232559,-3713.003,0.000499,2]
[321223151,1711990232569,-1043.30142532,0.00049947,4]
[321223152,1711990232578,-309.56250773,0.0004999,30]
[321223153,1711990232588,-267.4,0.0004999,10]
[321223154,1711990232598,-222.83,0.0004999,10]
[321223155,1711990232608,-185.69,0.0004999,10]
[321223156,1711990232619,-838.06132381,0.0005,2]
[321223157,1711990232629,-151.0,0.0005,120]
[321223158,1711990232639,-27070.10563861,0.0005,4]
[321223159,1711990232648,-309.56250773,0.00050514,30]
[321223160,1711990232658,-959.4477,0.00050524,2]
[321223161,1711990232667,-2147.9457,0.00050524,2]
[321223162,1711990232677,-1000.0,0.00050971,7]
[321223163,1711990232686,-1000.0,0.00050971,7]
[321223164,1711990232696,-1000.0,0.00050971,7]
[321223165,1711990232706,-1000.0,0.00050971,7]
[321223166,1711990232715,-309.56250773,0.00051152,30]
[321223167,1711990232724,-970.66,0.00051188,2]
[321223168,1711990232734,-151.34,0.00051212,2]
[321223169,1711990232743,-879.03,0.00051287,2]
[321223170,1711990232752,-2309.61,0.00051327,120]
[321223171,1711990232762,-150.0,0.00051359,2]
[321223172,1711990232771,-168.45,0.00051388,2]
[321223173,1711990232780,-163.96,0.00051394,120]
[321223174,1711990232790,-152.64,0.00051478,120]
[321223175,1711990232799,-151.0,0.00051507,120]
[321223176,1711990232808,-500.0,0.00051515,2]
[321223177,1711990232818,-384.3,0.00051627,2]
[321223178,1711990232831,-250.0,0.00051688,120]
[321223179,1711990232841,-182.96,0.00051729,2]
[321223180,1711990232850,-384.3,0.00051768,2]
[321223181,1711990232860,-877.36,0.00051812,2]
[321223182,1711990232869,-384.3,0.0005191,2]
[321223183,1711990232878,-488.85,0.00051953,2]
[321223184,1711990232888,-1398.76393283,0.00051953,4]
[321223185,1711990232897,-761.02,0.00051988,2]
[321223186,1711990232907,-384.3,0.00052052,2]
[321223187,1711990232916,-679.97438174,0.00052133,120]
[321223188,1711990232925,-200.0,0.00052146,2]
[321223189,1711990232934,-384.3,0.00052193,2]
[321223190,1711990232943,-309.56250773,0.00052234,30]
[321223191,1711990232952,-384.3,0.00052335,2]
[321223192,1711990232962,-250.0,0.0005246,120]
[321223193,1711990232971,-384.3,0.00052476,2]
[321223194,1711990232980,-447.68,0.00052496,2]
[321223195,1711990232989,-500.0,0.00052522,2]
[321223196,1711990232999,-174.47,0.0005259,2]
[321223197,1711990233008,-384.3,0.00052618,2]
[321223198,1711990233018,-500.0,0.00052623,2]
[321223199,1711990233027,-309.56250773,0.00052754,30]
[321223200,1711990233036,-309.56250773,0.00052754,30]
[321223201,1711990233046,-309.56250773,0.00052754,30]
[321223202,1711990233056,-309.56250773,0.00052754,30]
[321223203,1711990233065,-309.56250773,0.00052754,30]
[321223204,1711990233076,-384.3,0.0005276,2]
[321223205,1711990233085,-23900.0,0.00052764,2]
[321223206,1711990233094,-384.3,0.00052901,2]
[321223207,1711990233105,-384.3,0.00053043,2]
[321223208,1711990233114,-313.44,0.00053127,120]
[321223209,1711990233123,-2631.04415737,0.0005316,2]
[321223210,1711990233133,-309.56250773,0.00053174,30]
[321223211,1711990233142,-5273.54,0.00053184,2]
[321223212,1711990233152,-384.3,0.00053184,2]
[321223213,1711990233163,-151.0,0.0005326,120]
[321223214,1711990233173,-309.56250773,0.00053316,30]
[321223215,1711990233184,-309.56250773,0.00053316,30]
[321223216,1711990233193,-309.56250773,0.00053316,30]
[321223217,1711990233203,-309.56250773,0.00053316,30]
[321223218,1711990233213,-384.3,0.00053326,2]
[321223219,1711990233222,-384.3,0.00053468,2]
[321223220,1711990233231,-309.56250773,0.00053483,30]
[321223221,1711990233241,-384.3,0.00053609,2]
[321223222,1711990233250,-384.3,0.00053751,2]
[321223223,1711990233259,-168.7,0.00053825,2]
[321223224,1711990233268,-384.3,0.00053892,2]
[321223225,1711990233278,-970.66,0.00053927,2]
[321223226,1711990233287,-384.3,0.00054034,2]
[321223227,1711990233296,-384.3,0.00054175,2]
[321223228,1711990233306,-488.85,0.00054217,2]
[321223229,1711990233315,-384.3,0.00054317,2]
[321223230,1711990233330,-592.06630035,0.00054349,30]
[321223231,1711990233340,-2631.04415732,0.00054464,2]
[321223232,1711990233349,-1000.0,0.0005454,2]
[321223233,1711990233358,-679.97438174,0.00054566,120]
[321223234,1711990233369,-309.56250773,0.0005463,30]
[321223235,1711990233378,-309.56250773,0.0005463,30]
[321223236,1711990233388,-309.56250773,0.0005463,30]
[321223237,1711990233397,-309.56250773,0.0005463,30]
[321223238,1711990233408,-309.56250773,0.0005463,30]
[321223239,1711990233417,-2500.0,0.00054694,2]
[321223240,1711990233426,-309.56250773,0.00054784,30]
[321223241,1711990233435,-309.56250773,0.00054784,30]
[321223242,1711990233445,-309.56250773,0.00054785,30]
[321223243,1711990233456,-1008.54853735,0.00054794,120]
[321223244,1711990233465,-543.1173664,0.00054794,120]
[321223245,1711990233474,-531.85656523,0.00054794,120]
[321223246,1711990233483,-527.15977523,0.00054794,120]
[321223247,1711990233492,-500.0,0.00054794,120]
[321223248,1711990233501,-628.60378886,0.00054794,120]
[321223249,1711990233510,-500.0,0.00054794,120]
[321223250,1711990233519,-5078.62,0.00054795,2]
[321223251,1711990233528,-1000.0,0.00054873,120]
[321223252,1711990233537,-462.59385044,0.00055,5]
[321223253,1711990233546,-151.0,0.00055014,120]
[321223254,1711990233556,-309.56250773,0.00055058,30]
[321223255,1711990233568,-300.0,0.00055067,2]
[321223256,1711990233577,-300.0,0.00055067,2]
[321223257,1711990233586,-300.0,0.00055067,2]
[321223258,1711990233596,-300.0,0.00055067,2]
[321223259,1711990233605,-300.0,0.00055067,2]
[321223260,1711990233614,-300.0,0.00055067,2]
[321223261,1711990233626,-300.0,0.00055067,2]
[321223262,1711990233635,-500.0,0.00055068,120]
[321223263,1711990233645,-500.0,0.00055068,120]
[321223264,1711990233666,-174.73,0.00055174,2]
[321223265,1711990233676,-500.0,0.00055342,120]
[321223266,1711990233685,-500.0,0.00055342,120]
[321223267,1711990233694,-288.19005145,0.00055399,120]
[321223268,1711990233704,-500.0,0.00055399,120]
[321223269,1711990233713,-309.56250773,0.00055537,30]
[321223270,1711990233722,-309.56250773,0.00055537,30]
[321223272,1711990233732,-309.56250773,0.00055537,30]
[321223273,1711990233742,-309.56250773,0.00055537,30]
[321223274,1711990233752,-309.56250773,0.00055537,30]
[321223275,1711990233761,-500.0,0.00055546,120]
[321223276,1711990233772,-11411.8804,0.00055547,2]
[321223277,1711990233782,-14393.9767,0.00055547,2]
[321223278,1711990233791,-309.56250773,0.0005558,30]
[321223279,1711990233801,-500.0,0.00055616,120]
[321223280,1711990233810,-500.0,0.00055616,120]
[321223281,1711990233820,-500.0,0.00055673,120]
[321223282,1711990233829,-156.17,0.0005575,120]
[321223283,1711990233839,-2631.04415732,0.00055769,2]
[321223284,1711990233849,-1428.6,0.0005581,2]
[321223285,1711990233858,-500.0,0.0005582,120]
[321223286,1711990233867,-1428.6,0.00055825,2]
[321223287,1711990233877,-1428.6,0.00055839,2]
[321223288,1711990233886,-1428.6,0.00055854,2]
[321223289,1711990233895,-1428.6,0.00055869,2]
[321223290,1711990233905,-1428.6,0.00055883,2]
[321223291,1711990233914,-500.0,0.0005589,120]
[321223292,1711990233924,-1428.6,0.00055898,2]
[321223293,1711990233933,-1428.6,0.00055913,2]
[321223294,1711990233943,-1428.6,0.00055927,2]
[321223295,1711990233952,-1428.6,0.00055942,2]
[321223296,1711990233961,-500.0,0.00055947,120]
[321223297,1711990233970,-1428.6,0.00055957,2]
[321223298,1711990233979,-163.96,0.0005596,120]
[321223299,1711990233988,-1428.6,0.00055972,2]
[321223300,1711990233998,-1428.6,0.00055986,2]
[321223301,1711990234007,-1428.6,0.00056001,2]
[321223302,1711990234016,-500.0,0.00056015,120]
[321223303,1711990234026,-500.0,0.00056015,120]
[321223304,1711990234036,-500.0,0.00056015,120]
[321223305,1711990234046,-632.03761074,0.00056015,120]
[321223306,1711990234056,-500.0,0.00056015,120]
[321223307,1711990234065,-1428.6,0.00056016,2]
[321223308,1711990234076,-1428.6,0.0005603,2]
[321223309,1711990234085,-1428.6,0.00056045,2]
[321223310,1711990234094,-1428.6,0.0005606,2]
[321223311,1711990234104,-1428.6,0.00056074,2]
[321223312,1711990234113,-1428.6,0.00056089,2]
[321223313,1711990234122,-500.0,0.00056094,120]
[321223314,1711990234131,-500.0,0.00056164,120]
[321223315,1711990234141,-500.0,0.00056221,120]
[321223316,1711990234150,-500.0,0.00056289,120]
[321223317,1711990234159,-500.0,0.00056289,120]
[321223318,1711990234169,-500.0,0.00056289,120]
[321223319,1711990234178,-329.81788821,0.00056289,120]
[321223320,1711990234187,-1000.0,0.00056292,30]
[321223321,1711990234196,-500.0,0.00056292,120]
[321223322,1711990234206,-500.0,0.00056292,120]
[321223323,1711990234215,-503.85425232,0.00056292,2]
[321223324,1711990234225,-15158.9065,0.00056293,2]
[321223325,1711990234234,-500.0,0.00056368,120]
[321223326,1711990234244,-500.0,0.00056437,120]
[321223327,1711990234253,-500.0,0.00056437,120]
[321223328,1711990234262,-500.0,0.00056437,120]
[321223329,1711990234272,-500.0,0.00056438,120]
[321223330,1711990234281,-488.85,0.00056481,2]
[321223331,1711990234291,-500.0,0.00056495,120]
[321223332,1711990234300,-500.0,0.00056563,120]
[321223333,1711990234309,-500.0,0.00056563,120]
[321223334,1711990234319,-500.0,0.00056563,120]
[321223335,1711990234331,-752.89197605,0.00056566,30]
[321223336,1711990234550,-500.0,0.00056566,120]
[321223337,1711990234559,-154.26,0.000566,8]
[321223338,1711990234569,-337.8,0.000566,8]
[321223339,1711990234579,-337.8,0.000566,8]
[321223340,1711990234588,-337.8,0.000566,8]
[321223341,1711990234597,-337.8,0.000566,8]
[321223342,1711990234606,-337.8,0.000566,8]
[321223343,1711990234615,-337.8,0.000566,8]
[321223344,1711990234625,-337.8,0.000566,8]
[321223345,1711990234634,-337.8,0.000566,8]
[321223346,1711990234643,-337.8,0.000566,8]
[321223347,1711990234652,-337.8,0.000566,8]
[321223348,1711990234661,-337.8,0.000566,8]
[321223349,1711990234670,-337.8,0.000566,8]
[321223350,1711990234680,-337.8,0.000566,8]
[321223351,1711990234689,-337.8,0.000566,8]
[321223352,1711990234698,-337.8,0.000566,8]
[321223353,1711990234708,-337.8,0.000566,8]
[321223354,1711990234717,-337.8,0.000566,8]
[321223355,1711990234727,-337.8,0.000566,8]
[321223356,1711990234736,-337.8,0.000566,8]
[321223357,1711990234746,-337.8,0.000566,8]
[321223358,1711990234756,-500.0,0.00056642,120]
[321223359,1711990234765,-151.0,0.00056658,120]
[321223360,1711990234774,-970.66,0.00056667,2]
[321223361,1711990234783,-152.64,0.00056703,120]
[321223362,1711990234792,-500.0,0.00056711,120]
[321223363,1711990234802,-500.0,0.00056711,120]
[321223364,1711990234811,-500.0,0.00056711,120]
[321223365,1711990234820,-335.02433125,0.00056712,120]
[321223366,1711990234833,-151.0,0.00056767,120]
[321223367,1711990234842,-500.0,0.00056769,120]
[321223368,1711990234852,-500.0,0.00056837,120]
[321223369,1711990234862,-500.0,0.00056837,120]
[321223370,1711990234871,-500.0,0.00056837,120]
[321223371,1711990234880,-500.0,0.0005684,120]
[321223372,1711990234889,-500.0,0.00056916,120]
[321223373,1711990234898,-500.0,0.00056985,120]
[321223374,1711990234907,-500.0,0.00056985,120]
[321223375,1711990234917,-500.0,0.00056985,120]
[321223376,1711990234926,-500.0,0.00057043,120]
[321223377,1711990234936,-2631.04415732,0.00057073,2]
[321223378,1711990234945,-500.0,0.00057111,120]
[321223379,1711990234954,-500.0,0.00057111,120]
[321223380,1711990234963,-500.0,0.00057111,120]
[321223381,1711990234972,-320.13725722,0.00057114,120]
[321223382,1711990234983,-500.0,0.0005719,120]
[321223383,1711990234994,-150.0,0.00057191,120]
[321223384,1711990235004,-500.0,0.00057259,120]
[321223385,1711990235013,-500.0,0.00057259,120]
[321223386,1711990235023,-500.0,0.00057259,120]
[321223387,1711990235032,-160.55832501,0.00057317,120]
[321223388,1711990235042,-450.43164634,0.00057338,4]
[321223389,1711990235051,-500.0,0.00057385,120]
[321223390,1711990235061,-500.0,0.00057385,120]
[321223391,1711990235072,-500.0,0.00057385,120]
[321223392,1711990235082,-500.0,0.00057464,120]
[321223393,1711990235092,-500.0,0.00057533,120]
[321223394,1711990235101,-500.0,0.00057533,120]
[321223395,1711990235110,-500.0,0.00057533,120]
[321223396,1711990235120,-2164.17277426,0.00057606,29]
[321223397,1711990235130,-237.147246,0.00057624,120]
[321223398,1711990235139,-500.0,0.00057659,120]
[321223399,1711990235149,-500.0,0.00057659,120]
[321223400,1711990235159,-500.0,0.00057659,120]
[321223401,1711990235169,-300.0,0.00057706,2]
[321223402,1711990235178,-300.0,0.00057706,2]
[321223403,1711990235188,-300.0,0.00057706,2]
[321223404,1711990235197,-300.0,0.00057706,2]
[321223405,1711990235207,-355.97511575,0.00057706,2]
[321223406,1711990235216,-1000.0,0.00057716,2]
[321223407,1711990235226,-500.0,0.00057738,120]
[321223408,1711990235235,-1694.79013169,0.00057789,14]
[321223409,1711990235245,-1143.66532948,0.00057791,14]
[321223410,1711990235254,-1143.66532948,0.00057793,14]
[321223411,1711990235264,-1143.66532948,0.00057806,14]
[321223412,1711990235273,-500.0,0.00057807,120]
[321223413,1711990235283,-500.0,0.00057807,120]
[321223414,1711990235293,-500.0,0.00057807,120]
[321223415,1711990235303,-1143.66532948,0.00057816,14]
[321223416,1711990235312,-1694.79013169,0.00057818,14]
[321223417,1711990235323,-1694.79013169,0.00057821,14]
[321223418,1711990235336,-1143.66532948,0.00057829,14]
[321223419,1711990235345,-1143.66532948,0.00057854,14]
[321223420,1711990235354,-1694.79013169,0.0005786,14]
[321223421,1711990235368,-1694.79013169,0.00057861,14]
[321223422,1711990235378,-1143.66532948,0.00057872,14]
[321223423,1711990235388,-1694.79013169,0.00057885,14]
[321223424,1711990235398,-1694.79013169,0.00057899,14]
[321223425,1711990235409,-500.0,0.00057933,120]
[321223426,1711990235418,-500.0,0.00057933,120]
[321223427,1711990235428,-500.0,0.00057933,120]
[321223428,1711990235438,-500.0,0.00058012,120]
[321223429,1711990235448,-217.855825,0.00058015,30]
[321223430,1711990235457,-247.250981,0.00058015,30]
[321223431,1711990235467,-368.0,0.00058081,120]
[321223432,1711990235476,-237.42396683,0.00058081,120]
[321223433,1711990235572,-262.57603317,0.00058081,120]
[321223434,1711990235581,-500.0,0.00058081,120]
[321223435,1711990235591,-500.0,0.00058207,120]
[321223436,1711990235601,-500.0,0.00058207,120]
[321223437,1711990235610,-500.0,0.00058207,120]
[321223438,1711990235620,-500.0,0.00058286,120]
[321223439,1711990235630,-500.0,0.00058355,120]
[321223440,1711990235640,-378.83210746,0.00058355,120]
[321223458,1711990238413,-154.74,0.00057782,10]
[321223460,1711990238423,-121.16789254,0.00058355,120]
[321223462,1711990238432,-2631.04415732,0.00058378,2]
[321223463,1711990238441,-500.0,0.00058481,120]
[321223464,1711990238451,-500.0,0.00058481,120]
[321223465,1711990238460,-151.0,0.00058521,120]
[321223466,1711990238470,-500.0,0.0005856,120]
[321223467,1711990238479,-788.51267319,0.000586,120]
[321223468,1711990238488,-238.01269885,0.00058629,120]
[321223469,1711990238504,-294.30327678,0.00058629,120]
[321223470,1711990238535,-94.79580453,0.00058629,120]
[321223471,1711990238544,-500.0,0.00058629,120]
[321223472,1711990238553,-488.85,0.00058745,2]
[321223473,1711990238563,-500.0,0.00058755,120]
[321223474,1711990238574,-274.58874253,0.00058755,120]
[321223475,1711990238583,-500.0,0.00058834,120]
[321223476,1711990238592,-5000.0,0.000589,120]
[321223477,1711990238601,-157.01416745,0.000589,2]
[321223478,1711990238611,-500.0,0.00058903,120]
[321223479,1711990238620,-5000.0,0.00059,60]
[321223480,1711990238629,-154.26,0.00059,9]
[321223481,1711990238638,-154.26,0.00059,9]
[321223482,1711990238648,-337.8,0.00059,9]
[321223483,1711990238658,-337.8,0.00059,9]
[321223484,1711990238668,-337.8,0.00059,9]
[321223485,1711990238677,-337.8,0.00059,9]
[321223486,1711990238686,-337.8,0.00059,9]
[321223487,1711990238697,-337.8,0.00059,9]